bitfinex-derivatives/quotes_BTCF0:USTF0_20240903
["timestamp","ask_amount","ask_price","bid_price","bid_amount"]
[1725333624983,1.73813757,59343.0,59342.0,0.005]
[1725333625498,1.78383757,59343.0,59342.0,0.005]
[1725333629994,1.09383757,59343.0,59342.0,0.005]
[1725333630400,0.58831757,59343.0,59342.0,0.005]
[1725333631990,1.09383757,59343.0,59342.0,0.005]
[1725333632602,1.69383757,59343.0,59342.0,0.005]
[1725333632896,1.78383757,59343.0,59342.0,0.005]
[1725333635799,0.58831757,59343.0,59342.0,0.005]
[1725333636793,0.54261757,59343.0,59342.0,0.005]
[1725333642907,0.537801,59343.0,59342.0,0.095]
[1725333644799,0.537801,59343.0,59342.0,0.162402]
[1725333645005,0.4704,59343.0,59342.0,0.162402]
[1725333646012,0.4704,59343.0,59342.0,0.2129542]
[1725333646312,0.4704,59343.0,59342.0,0.162402]
[1725333647710,0.4704,59343.0,59342.0,0.21289513]
[1725333648312,0.4704,59343.0,59342.0,0.162402]
[1725333648709,0.4704,59343.0,59342.0,0.21289624]
[1725333648908,0.4704,59343.0,59342.0,0.162402]
[1725333649312,0.4704,59343.0,59342.0,0.21289963]
[1725333649507,0.4704,59343.0,59342.0,0.21774213]
[1725333650013,0.4704,59343.0,59342.0,0.21574213]
[1725333650402,0.4704,59343.0,59342.0,0.1652445]
[1725333650608,0.4704,59343.0,59342.0,0.21574654]
[1725333650809,0.4704,59343.0,59342.0,0.1652445]
[1725333651016,0.4704,59343.0,59342.0,0.21574646]
[1725333651209,0.4704,59343.0,59342.0,0.1652445]
[1725333651917,0.4704,59343.0,59342.0,0.21275199]
[1725333652916,0.4704,59343.0,59342.0,0.1622445]
[1725333666017,0.4704,59343.0,59342.0,0.0048425]
[1725333666227,0.9212,59343.0,59341.0,0.00025291]
[1725333666415,0.113002,59342.0,59341.0,0.00025291]
[1725333667023,0.203002,59342.0,59341.0,0.00025291]
[1725333667924,0.2547228,59342.0,59341.0,0.00025291]
[1725333669617,0.203002,59342.0,59341.0,0.00025291]
[1725333670625,0.113002,59342.0,59341.0,0.00025291]
[1725333672822,0.067802,59342.0,59341.0,0.00025291]
[1725333678138,0.067802,59342.0,59341.0,0.05075998]
[1725333678329,0.067802,59342.0,59341.0,0.00025291]
[1725333680127,0.0004,59342.0,59341.0,0.00025291]
[1725333680333,0.0004,59342.0,59341.0,0.06765585]
[1725333680532,0.0004,59342.0,59341.0,0.00025291]
[1725333680936,0.0004,59342.0,59341.0,0.06759011]
[1725333681940,0.0004,59342.0,59341.0,0.06765591]
[1725333682938,0.05211419,59342.0,59341.0,0.06765591]
[1725333683139,0.05211364,59342.0,59341.0,0.06765591]
[1725333683837,0.05211393,59342.0,59341.0,0.06765591]
[1725333684145,0.0004,59342.0,59341.0,0.06765591]
[1725333689139,0.0004,59342.0,59341.0,0.42845591]
[1725333689440,0.0004,59342.0,59341.0,0.06765591]
[1725333689648,0.0004,59342.0,59341.0,0.42845591]
[1725333695842,0.0004,59342.0,59341.0,0.36105291]
[1725333696351,0.157802,59342.0,59341.0,0.00025291]
[1725333696850,0.225204,59342.0,59341.0,0.00025291]
[1725333697048,1.691564,59342.0,59341.0,0.00025291]
[1725333698048,2.161564,59342.0,59341.0,0.00025291]
[1725333698349,2.16630892,59342.0,59341.0,0.00025291]
[1725333698649,1.56630892,59342.0,59341.0,0.00025291]
[1725333701048,1.06074892,59342.0,59341.0,0.00025291]
[1725333704451,2.16630892,59342.0,59341.0,0.00025291]
[1725333704656,1.56630892,59342.0,59341.0,0.00025291]
[1725333705455,2.16630892,59342.0,59341.0,0.00025291]
[1725333705644,2.16630892,59342.0,59335.0,0.0039]
[1725333705645,0.067409,59336.0,59335.0,0.0039]
[1725333705848,0.518609,59336.0,59327.0,0.0039]
[1725333706048,0.518609,59336.0,59326.0,0.4508]
[1725333706049,0.0004,59328.0,59326.0,0.45664086]
[1725333706242,0.0004,59327.0,59326.0,0.45556086]
[1725333706441,0.067419,59328.0,59326.0,0.45556086]
[1725333706652,0.067419,59328.0,59327.0,0.0004]
[1725333707551,0.067419,59328.0,59327.0,0.0134]
[1725333708058,0.064419,59328.0,59327.0,0.0134]
[1725333708751,0.064419,59328.0,59327.0,0.0244]
[1725333712862,0.154419,59328.0,59327.0,0.0244]
[1725333713047,1.327518,59328.0,59327.0,0.0244]
[1725333713248,1.327518,59328.0,59321.0,0.00025291]
[1725333713249,0.067425,59322.0,59321.0,0.00025291]
[1725333713452,0.49565,59322.0,59321.0,0.00025291]
[1725333713653,1.47177,59322.0,59321.0,0.00025291]
[1725333713853,1.52097,59322.0,59321.0,0.00025291]
[1725333714659,2.12597,59322.0,59321.0,0.00025291]
[1725333715958,2.12597,59322.0,59313.0,0.3647]
[1725333715959,0.067434,59314.0,59313.0,0.3647]
[1725333716150,0.227834,59314.0,59313.0,0.3608]
[1725333716459,0.227834,59314.0,59311.0,0.00474231]
[1725333716460,0.067436,59312.0,59311.0,0.00474231]
[1725333716663,0.067436,59312.0,59305.0,0.0039]
[1725333716664,0.067443,59306.0,59305.0,0.0039]
[1725333716861,0.067443,59306.0,59300.0,0.00025291]
[1725333716862,0.588643,59306.0,59300.0,0.00025291]
[1725333717159,0.47,59305.0,59300.0,0.00025291]
[1725333718253,0.58360301,59306.0,59300.0,0.00025291]
[1725333718454,0.58360301,59306.0,59305.0,0.0004]
[1725333718455,0.582643,59306.0,59305.0,0.0004]
[1725333718851,0.583643,59306.0,59305.0,0.0074]
[1725333719258,0.631,59306.0,59305.0,0.0074]
[1725333719559,2.09764,59306.0,59305.0,0.0004]
[1725333719953,2.11103321,59306.0,59305.0,0.0004]
[1725333720154,2.11003321,59306.0,59305.0,0.0004]
[1725333720355,2.11103321,59306.0,59305.0,0.0074]
[1725333721467,2.17847621,59306.0,59305.0,0.0074]
[1725333721656,2.17947621,59306.0,59305.0,0.0124]
[1725333722159,0.83764337,59306.0,59305.0,0.0124]
[1725333722461,0.47684337,59306.0,59305.0,0.0124]
[1725333723347,0.47684337,59306.0,59305.0,0.079844]
[1725333723348,0.472,59306.0,59305.0,0.079844]
[1725333723658,0.002,59306.0,59305.0,0.127744]
[1725333724759,0.002,59306.0,59305.0,0.1324382]
[1725333729469,0.47,59310.0,59309.0,0.06744]
[1725333729662,0.47,59310.0,59309.0,0.22744]
[1725333729869,0.47,59310.0,59309.0,0.22784]
[1725333730365,0.00025291,59311.0,59310.0,0.134876]
[1725333730565,0.00025291,59311.0,59310.0,0.715538]
[1725333730764,0.00025291,59311.0,59310.0,1.221338]
[1725333731168,0.00025291,59311.0,59310.0,1.27174128]
[1725333731569,0.00025291,59311.0,59310.0,0.67374128]
[1725333732069,0.00025291,59311.0,59310.0,0.67574128]
[1725333732256,0.00025291,59311.0,59310.0,0.625338]
[1725333733067,0.00025291,59311.0,59310.0,0.119538]
[1725333733262,0.00025291,59311.0,59310.0,0.625338]
[1725333733969,0.00025291,59311.0,59310.0,0.119538]
[1725333735264,0.00025291,59311.0,59310.0,0.18674237]
[1725333736969,0.00025291,59311.0,59310.0,0.90834237]
[1725333737371,0.00025291,59311.0,59310.0,0.841138]
[1725333737677,0.00025291,59311.0,59310.0,0.90826545]
[1725333738273,0.00025291,59311.0,59310.0,0.841138]
[1725333742769,0.00025291,59311.0,59310.0,0.793438]
[1725333744176,0.00025291,59311.0,59310.0,0.432638]
[1725333745484,0.00025291,59311.0,59310.0,0.071838]
[1725333745779,0.00025291,59311.0,59310.0,0.432638]
[1725333746281,0.00025291,59311.0,59310.0,0.071838]
[1725333746474,0.00025291,59311.0,59310.0,0.432638]
[1725333748066,0.06768991,59311.0,59310.0,0.3652]
[1725333749476,0.06768991,59311.0,59310.0,0.0044]
[1725333750274,0.06768991,59311.0,59310.0,0.071838]
[1725333750577,0.00025291,59311.0,59310.0,0.13905269]
[1725333750777,0.00025291,59311.0,59310.0,0.49985269]
[1725333751076,0.00025291,59311.0,59310.0,0.432638]
[1725333753273,0.00025291,59311.0,59310.0,0.51664347]
[1725333753678,0.00025291,59311.0,59310.0,0.64509972]
[1725333753879,0.00025291,59311.0,59310.0,0.64509982]
[1725333754078,0.00025291,59311.0,59310.0,0.6451]
[1725333754279,0.00025291,59311.0,59310.0,0.56109453]
[1725333754480,0.00025291,59311.0,59310.0,0.64526688]
[1725333754692,0.00025291,59311.0,59310.0,0.56109453]
[1725333756082,0.00025291,59311.0,59310.0,0.64527602]
[1725333756381,0.00025291,59311.0,59310.0,0.56109453]
[1725333758384,0.00025291,59311.0,59310.0,0.432638]
[1725333759378,0.0488,59316.0,59311.0,0.067437]
[1725333759583,0.0488,59316.0,59315.0,0.5212]
[1725333759786,0.0039,59320.0,59319.0,0.067428]
[1725333759986,0.0474,59322.0,59319.0,0.16]
[1725333760186,0.0474,59322.0,59321.0,0.067826]
[1725333760487,0.0474,59322.0,59321.0,0.067426]
[1725333761394,0.0554,59322.0,59321.0,0.067426]
[1725333762192,0.0644,59322.0,59321.0,0.068426]
[1725333762886,0.0664,59322.0,59321.0,0.069426]
[1725333765893,0.0664,59322.0,59321.0,0.07428809]
[1725333773410,0.0664,59322.0,59321.0,0.069426]
[1725333777105,0.11813573,59322.0,59321.0,0.069426]
[1725333777306,0.0664,59322.0,59321.0,0.069426]
[1725333783413,0.223825,59322.0,59321.0,0.069426]
[1725333783608,0.223825,59322.0,59321.0,0.002]
[1725333784919,0.067427,59320.0,59316.0,0.00025291]
[1725333785125,0.8019,59322.0,59310.0,0.0039]
[1725333785126,0.3612,59317.0,59310.0,0.0039]
[1725333785424,0.067441,59308.0,59307.0,0.0039]
[1725333785611,0.067441,59308.0,59304.0,0.006]
[1725333785612,0.067444,59305.0,59304.0,0.006]
[1725333785811,0.067844,59305.0,59304.0,0.006]
[1725333786013,0.157444,59305.0,59304.0,0.006]
[1725333786814,0.0474,59307.0,59304.0,0.006]
[1725333787019,0.001,59305.0,59304.0,0.013]
[1725333787219,0.001,59305.0,59304.0,0.103]
[1725333787418,0.001,59305.0,59304.0,0.170445]
[1725333787924,0.001,59305.0,59304.0,0.240445]
[1725333788528,0.001,59305.0,59304.0,0.237445]
[1725333788825,0.001,59305.0,59304.0,0.243445]
[1725333789121,0.001,59305.0,59304.0,0.237445]
[1725333789423,0.001,59305.0,59304.0,0.242445]
[1725333791620,0.001,59305.0,59304.0,0.175]
[1725333791819,0.001,59305.0,59304.0,0.015]
[1725333796925,0.001,59305.0,59304.0,0.082445]
[1725333803431,0.001,59305.0,59304.0,0.13296492]
[1725333805524,0.001,59305.0,59304.0,0.082445]
[1725333805717,0.001,59305.0,59304.0,0.13289629]
[1725333806122,0.001,59305.0,59304.0,0.082445]
[1725333813936,0.001,59305.0,59304.0,0.13293866]
[1725333814331,0.001,59305.0,59304.0,0.082445]
[1725333815838,0.3618,59305.0,59304.0,0.13303893]
[1725333816429,0.3618,59305.0,59304.0,0.082445]
[1725333816826,0.3618,59305.0,59304.0,0.06559675]
[1725333816827,0.068444,59305.0,59304.0,0.06559675]
[1725333817131,0.135888,59305.0,59304.0,0.015]
[1725333817432,0.068444,59305.0,59304.0,0.015]
[1725333817831,0.468444,59305.0,59304.0,0.015]
[1725333818433,0.52020124,59305.0,59304.0,0.015]
[1725333825546,0.468444,59305.0,59304.0,0.015]
[1725333825743,0.558444,59305.0,59304.0,0.015]
[1725333826352,0.919244,59305.0,59304.0,0.015]
[1725333833442,0.9710003,59305.0,59304.0,0.015]
[1725333839866,0.9710003,59305.0,59304.0,0.0104185]
[1725333839867,2.1443243,59305.0,59304.0,0.0104185]
[1725333840063,2.32705245,59305.0,59304.0,0.0104185]
[1725333840259,2.20480521,59305.0,59304.0,0.0104185]
[1725333840464,1.492568,59305.0,59304.0,0.0104185]
[1725333841372,2.091568,59305.0,59304.0,0.0084185]
[1725333841769,2.091568,59305.0,59304.0,0.0044185]
[1725333841970,2.091568,59305.0,59304.0,0.0064185]
[1725333847174,2.452368,59305.0,59304.0,0.0064185]
[1725333848568,2.50412886,59305.0,59304.0,0.0064185]
[1725333848777,2.59412886,59305.0,59304.0,0.0064185]
[1725333850667,1.33080486,59305.0,59304.0,0.0064185]
[1725333850874,1.279044,59305.0,59304.0,0.0064185]
[1725333852177,1.33080178,59305.0,59304.0,0.0064185]
[1725333853981,1.17335778,59305.0,59304.0,0.0064185]
[1725333854173,1.26335778,59305.0,59304.0,0.0064185]
[1725333855268,1.26335739,59305.0,59304.0,0.0064185]
[1725333855471,1.2116,59305.0,59304.0,0.0064185]
[1725333856881,0.8508,59305.0,59304.0,0.0064185]
[1725333857677,0.918244,59305.0,59304.0,0.0064185]
[1725333860073,0.985688,59305.0,59304.0,0.0064185]
[1725333860984,0.828244,59305.0,59304.0,0.0064185]
[1725333861283,0.918244,59305.0,59304.0,0.0064185]
[1725333863589,0.96999987,59305.0,59304.0,0.0064185]
[1725333865483,0.96999948,59305.0,59304.0,0.0064185]
[1725333866088,1.01579948,59305.0,59304.0,0.0064185]
[1725333867584,2.18912348,59305.0,59304.0,0.0064185]
[1725333867789,2.30912348,59305.0,59304.0,0.0064185]
[1725333869996,2.49282638,59305.0,59304.0,0.0064185]
[1725333870196,2.55330779,59305.0,59304.0,0.0064185]
[1725333870393,2.55331253,59305.0,59304.0,0.0064185]
[1725333870600,1.657368,59305.0,59304.0,0.0064185]
[1725333874001,1.151488,59305.0,59304.0,0.0064185]
[1725333876797,1.031488,59305.0,59304.0,0.0064185]
[1725333877391,0.828244,59305.0,59304.0,0.0064185]
[1725333877699,0.918244,59305.0,59304.0,0.0064185]
[1725333885695,0.97000165,59305.0,59304.0,0.0064185]
[1725333890400,0.97000177,59305.0,59304.0,0.0064185]
[1725333893610,0.918244,59305.0,59304.0,0.0064185]
[1725333900904,1.095688,59305.0,59304.0,0.0064185]
[1725333903613,1.163132,59305.0,59304.0,0.0064185]
[1725333903809,1.174132,59305.0,59304.0,0.0044185]
[1725333904016,1.184132,59305.0,59304.0,0.0014185]
[1725333905618,1.184132,59305.0,59299.0,0.00025291]
[1725333905619,0.1349,59300.0,59299.0,0.00025291]
[1725333905918,0.65315,59300.0,59299.0,9.1e-07]
[1725333906127,0.134916,59293.0,59292.0,0.0039]
[1725333906310,0.067461,59290.0,59289.0,0.0469]
[1725333906508,0.157461,59290.0,59289.0,0.0469]
[1725333906912,0.156461,59290.0,59289.0,0.0469]
[1725333907523,0.067467,59285.0,59284.0,0.05084963]
[1725333907726,0.067467,59285.0,59284.0,0.00025291]
[1725333907727,0.423267,59285.0,59284.0,0.00025291]
[1725333907912,0.418267,59285.0,59284.0,0.00025291]
[1725333909419,0.419267,59285.0,59284.0,0.00025291]
[1725333910710,0.418267,59285.0,59284.0,0.00025291]
[1725333911214,0.42307604,59285.0,59284.0,0.00025291]
[1725333913324,0.42387604,59285.0,59284.0,0.00025291]
[1725333917420,0.06307604,59285.0,59284.0,0.00025291]
[1725333917725,0.42387604,59285.0,59284.0,0.00025291]
[1725333919029,0.51387604,59285.0,59284.0,0.00025291]
[1725333919220,0.06307604,59285.0,59284.0,0.09025291]
[1725333919422,0.06307604,59285.0,59284.0,0.14084963]
[1725333919622,0.06307604,59285.0,59284.0,0.05084963]
[1725333920330,0.15307604,59285.0,59284.0,0.05084963]
[1725333923528,0.15307604,59285.0,59284.0,0.00025291]
[1725333932139,0.15307604,59285.0,59284.0,0.05081324]
[1725333932526,0.15307604,59285.0,59284.0,0.05082629]
[1725333932727,0.15307604,59285.0,59273.0,0.06748]
[1725333932728,0.69560904,59285.0,59278.0,0.0505757]
[1725333932930,0.69560904,59285.0,59258.0,0.65503693]
[1725333932931,0.09,59277.0,59272.0,0.05058251]
[1725333933129,0.134966,59271.0,59270.0,0.05058251]
[1725333933329,0.134966,59271.0,59259.0,0.10091737]
[1725333933330,0.067495,59260.0,59259.0,0.08409781]
[1725333933524,0.0908,59260.0,59257.0,0.0673716]
[1725333933728,0.0908,59258.0,59257.0,0.0673716]
[1725333934038,0.09,59258.0,59254.0,0.0673716]
[1725333934338,0.919101,59255.0,59253.0,0.05078401]
[1725333934642,0.8516,59255.0,59253.0,0.04815313]
[1725333934833,0.4908,59255.0,59253.0,0.04815313]
[1725333935629,0.4008,59255.0,59253.0,0.04815313]
[1725333936127,0.4048,59255.0,59253.0,0.04815313]
[1725333936327,0.0048,59255.0,59253.0,0.55443313]
[1725333936641,0.0048,59255.0,59253.0,0.62193613]
[1725333937024,0.0048,59255.0,59253.0,0.11565613]
[1725333937633,0.0048,59255.0,59254.0,0.66628]
[1725333938432,0.0048,59255.0,59254.0,1.26628]
[1725333938628,0.0048,59255.0,59254.0,0.66628]
[1725333938830,0.0008,59255.0,59254.0,0.66628]
[1725333939036,0.0058,59255.0,59254.0,0.66628]
[1725333939927,0.0058,59255.0,59253.0,0.06775613]
[1725333940127,0.16,59254.0,59253.0,0.00025313]
[1725333940333,0.0008,59254.0,59253.0,0.00025313]
[1725333941341,0.4008,59254.0,59253.0,0.00025313]
[1725333943139,0.4048,59254.0,59253.0,0.00025313]
[1725333943340,0.472302,59254.0,59253.0,0.00025313]
[1725333945441,0.632302,59254.0,59253.0,0.00025313]
[1725333945846,0.472302,59254.0,59253.0,0.00025313]
[1725333946343,0.632302,59254.0,59253.0,0.00025313]
[1725333949945,0.472302,59254.0,59253.0,0.00025313]
[1725333954542,0.472302,59254.0,59246.0,0.0474]
[1725333954543,0.067507,59250.0,59246.0,0.04565313]
[1725333954746,0.0008,59247.0,59246.0,0.04565313]
[1725333955140,0.4008,59247.0,59246.0,0.04565313]
[1725333956440,0.5608,59247.0,59233.0,0.36176]
[1725333956643,0.1608,59240.0,59233.0,0.3608]
[1725333956946,0.0008,59240.0,59239.0,0.588319]
[1725333957146,0.0008,59240.0,59239.0,1.188319]
[1725333957458,0.0008,59240.0,59239.0,1.694719]
[1725333957753,0.0018,59240.0,59239.0,1.694719]
[1725333958553,0.0008,59240.0,59239.0,1.694719]
[1725333958756,0.0028,59240.0,59239.0,1.694719]
[1725333960854,0.00508299,59249.0,59246.0,0.06751]
[1725333961057,0.00508299,59249.0,59248.0,0.16]
[1725333961446,0.00508299,59249.0,59248.0,0.2064]
[1725333962150,0.00608299,59249.0,59248.0,0.273909]
[1725333962451,0.00225313,59249.0,59248.0,0.34116684]
[1725333962952,0.00125313,59249.0,59248.0,0.273909]
[1725333963860,0.00125313,59249.0,59248.0,0.27873887]
[1725333968258,0.06876113,59249.0,59248.0,0.00482987]
[1725333968458,0.16125313,59249.0,59245.0,0.06741141]
[1725333968659,0.16125313,59249.0,59240.0,0.44975781]
[1725333968660,0.00125313,59249.0,59247.0,0.16]
[1725333968866,0.4,59248.0,59247.0,0.16]
[1725333969559,0.467509,59248.0,59247.0,0.22741141]
[1725333969762,0.4,59248.0,59247.0,0.22741141]
[1725333970066,0.4,59248.0,59247.0,0.22841141]
[1725333970451,0.4,59248.0,59247.0,0.27461141]
[1725333971157,0.4,59248.0,59247.0,0.11461141]
[1725333971359,0.467509,59248.0,59247.0,0.0472]
[1725333971659,0.467509,59248.0,59247.0,0.11465682]
[1725333971867,0.468509,59248.0,59247.0,0.11465682]
[1725333973462,0.468509,59248.0,59247.0,0.27465682]
[1725333973665,0.468509,59248.0,59247.0,0.2072]
[1725333973666,0.401,59248.0,59247.0,0.2072]
[1725333974360,0.401,59248.0,59247.0,0.27471]
[1725333975758,0.401,59248.0,59247.0,1.34966755]
[1725333975759,0.001,59248.0,59247.0,1.34966755]
[1725333975956,0.001,59248.0,59247.0,1.22107]
[1725333976572,0.001,59248.0,59247.0,0.62107]
[1725333977170,0.001,59248.0,59247.0,1.22107]
[1725333977661,0.001,59248.0,59247.0,1.22583473]
[1725333979166,0.001,59248.0,59247.0,1.58663473]
[1725333979958,0.001,59248.0,59247.0,1.08027473]
[1725333980163,0.001,59248.0,59247.0,1.58663473]
[1725333982958,0.001,59248.0,59247.0,1.22583473]
[1725333983165,0.001,59248.0,59247.0,1.65414473]
[1725333988874,0.001,59248.0,59247.0,1.05403311]
[1725333989072,0.001,59248.0,59247.0,0.48027473]
[1725333989376,0.001,59248.0,59247.0,0.98663473]
[1725333989573,0.001,59248.0,59247.0,0.48027473]
[1725333990580,0.001,59248.0,59247.0,0.53083239]
[1725333990771,0.001,59248.0,59247.0,0.48027473]
[1725333991283,0.001,59248.0,59247.0,0.53083222]
[1725333991970,0.001,59248.0,59247.0,0.48027473]
[1725333992875,0.00025313,59249.0,59248.0,0.067509]
[1725333993079,0.00025313,59249.0,59248.0,0.11847291]
[1725333993582,0.40025313,59249.0,59248.0,0.11847291]
[1725333994174,0.40525313,59249.0,59248.0,0.11847291]
[1725333994684,0.40525313,59249.0,59248.0,0.067909]
[1725333994979,0.00525313,59249.0,59248.0,0.47927291]
[1725333995182,0.00525313,59249.0,59248.0,0.428709]
[1725333996482,0.00525313,59249.0,59248.0,0.47927291]
[1725333996677,0.00525313,59249.0,59248.0,0.428709]
[1725334001984,0.00525313,59249.0,59248.0,0.518709]
[1725334007095,0.00525313,59249.0,59248.0,0.71480669]
[1725334007283,0.0039,59255.0,59252.0,0.09]
[1725334007595,0.0456,59261.0,59257.0,0.067499]
[1725334007596,0.0039,59258.0,59257.0,0.067499]
[1725334007790,0.4456,59261.0,59260.0,0.067495]
[1725334007996,0.4456,59261.0,59260.0,0.157895]
[1725334008197,0.4,59261.0,59260.0,0.157895]
[1725334008388,0.4,59261.0,59260.0,0.157495]
[1725334009402,0.41,59261.0,59260.0,0.157495]
[1725334010099,0.41,59261.0,59260.0,0.227495]
[1725334010398,0.424,59261.0,59260.0,0.228495]
[1725334011193,0.424,59261.0,59260.0,0.23327486]
[1725334013099,0.51710116,59261.0,59260.0,0.23327486]
[1725334015400,0.66772016,59261.0,59260.0,0.23327486]
[1725334015814,0.26772016,59261.0,59260.0,0.23327486]
[1725334016013,0.06531527,59261.0,59260.0,0.23327486]
[1725334019411,0.06531527,59261.0,59260.0,0.001]
[1725334019412,0.535419,59261.0,59260.0,0.001]
[1725334019616,0.47790171,59261.0,59260.0,0.001]
[1725334019816,1.02852071,59261.0,59260.0,0.001]
[1725334020015,1.09601471,59261.0,59260.0,0.001]
[1725334020219,0.99119571,59261.0,59260.0,0.001]
[1725334020421,0.99119571,59261.0,59257.0,0.0004]
[1725334020422,0.066498,59258.0,59257.0,0.0004]
[1725334020611,0.226898,59258.0,59257.0,0.0004]
[1725334020806,0.27868444,59258.0,59257.0,0.0004]
[1725334021022,1.133178,59258.0,59257.0,0.0004]
[1725334021218,1.132178,59258.0,59257.0,0.0004]
[1725334022926,0.465898,59258.0,59257.0,0.0004]
[1725334023520,0.479898,59258.0,59257.0,0.0014]
[1725334023815,0.486898,59258.0,59257.0,0.0014]
[1725334025914,0.646898,59258.0,59257.0,0.0014]
[1725334026921,1.753178,59258.0,59257.0,0.0014]
[1725334027922,1.820676,59258.0,59257.0,0.0014]
[1725334028126,1.820676,59258.0,59255.0,0.00025313]
[1725334028127,0.135,59256.0,59255.0,1.3e-07]
[1725334028315,0.135014,59250.0,59249.0,0.0039]
[1725334028512,0.067516,59242.0,59241.0,0.0039]
[1725334028718,0.067516,59242.0,59239.0,0.0008]
[1725334028719,0.067518,59240.0,59239.0,0.0008]
[1725334028925,0.067918,59240.0,59239.0,0.0008]
[1725334030327,0.067918,59240.0,59239.0,0.0048]
[1725334030328,0.068918,59240.0,59239.0,0.0048]
[1725334031320,0.069918,59240.0,59239.0,0.0058]
[1725334033223,0.07460082,59240.0,59239.0,0.0058]
[1725334035327,0.07460082,59240.0,59233.0,0.0039]
[1725334035328,0.13505,59234.0,59233.0,0.0039]
[1725334035522,0.13505,59234.0,59200.0,0.0674617]
[1725334035523,0.067534,59226.0,59225.0,0.0039]
[1725334035723,0.067534,59226.0,59223.0,0.00470872]
[1725334035724,0.067534,59226.0,59223.0,0.00578872]
[1725334035932,0.067534,59226.0,59225.0,0.16]
[1725334036137,0.00025313,59231.0,59225.0,0.16]
[1725334036435,0.00025313,59231.0,59230.0,0.16]
[1725334036629,0.04855313,59233.0,59230.0,0.16]
[1725334036935,0.467529,59231.0,59230.0,0.16]
[1725334037324,0.467529,59231.0,59230.0,0.146]
[1725334037524,0.468529,59231.0,59230.0,0.146]
[1725334037736,0.001,59231.0,59230.0,0.146]
[1725334038034,0.3608,59234.0,59230.0,0.213529]
[1725334038239,0.3608,59234.0,59233.0,0.16]
[1725334038421,0.3608,59234.0,59230.0,0.004]
[1725334038621,0.0008,59231.0,59230.0,0.004]
[1725334038825,0.4008,59231.0,59230.0,0.004]
[1725334039438,0.4008,59231.0,59230.0,0.00392]
[1725334040224,0.4008,59231.0,59226.0,0.16]
[1725334040421,0.0008,59227.0,59226.0,0.16]
[1725334041428,0.0008,59227.0,59226.0,0.227534]
[1725334041634,0.0018,59227.0,59226.0,0.227534]
[1725334046742,0.0018,59227.0,59226.0,0.16]
[1725334050136,0.0018,59227.0,59225.0,0.00493624]
[1725334050137,0.069333,59227.0,59225.0,0.00493624]
[1725334050338,0.0008,59226.0,59225.0,0.00493624]
[1725334051442,0.0008,59226.0,59225.0,0.21549203]
[1725334051944,0.0008,59226.0,59225.0,0.23247124]
[1725334052937,0.0018,59226.0,59225.0,0.23247124]
[1725334054647,0.0018,59226.0,59225.0,0.29993294]
[1725334054836,0.0018,59226.0,59225.0,0.23247124]
[1725334055236,0.0018,59226.0,59225.0,0.29993294]
[1725334056245,0.0018,59226.0,59225.0,0.23247124]
[1725334057335,0.36565597,59233.0,59225.0,0.23247124]
[1725334057336,0.00025313,59236.0,59233.0,0.067526]
[1725334057541,0.00025313,59236.0,59233.0,0.05055444]
[1725334057845,0.00025313,59236.0,59235.0,0.16]
[1725334058238,0.00025313,59236.0,59235.0,0.227524]
[1725334058439,0.40025313,59236.0,59235.0,0.227524]
[1725334058642,0.00025313,59236.0,59235.0,0.27807844]
[1725334059038,0.40025313,59236.0,59235.0,0.227524]
[1725334060145,0.40125313,59236.0,59235.0,0.227524]
[1725334060751,0.00125313,59236.0,59235.0,0.227524]
[1725334061450,0.00125313,59236.0,59235.0,0.29492993]
[1725334061842,0.00125313,59236.0,59235.0,0.227524]
[1725334062147,0.00125313,59236.0,59235.0,0.157524]
[1725334065553,0.00125313,59236.0,59235.0,0.16228743]
[1725334066251,0.00125313,59236.0,59234.0,0.0493]
[1725334066450,0.0008,59235.0,59233.0,0.09]
[1725334066853,0.0008,59234.0,59230.0,0.09]
[1725334067041,0.0008,59234.0,59226.0,0.114133]
[1725334067042,0.067531,59229.0,59228.0,0.00477399]
[1725334067244,0.067531,59229.0,59226.0,0.1366]
[1725334067444,0.068331,59229.0,59226.0,0.1366]
[1725334068740,0.068331,59229.0,59226.0,0.14149892]
[1725334069152,0.067331,59229.0,59226.0,0.14149892]
[1725334069941,0.068331,59229.0,59226.0,0.14249892]
[1725334070656,0.0018,59229.0,59228.0,0.067532]
[1725334071757,0.0018,59229.0,59228.0,0.157532]
[1725334072945,0.0008,59229.0,59228.0,0.157532]
[1725334073147,0.0018,59229.0,59228.0,0.157532]
[1725334073454,0.0018,59229.0,59228.0,0.28617058]
[1725334074353,0.0018,59229.0,59228.0,0.28617057]
[1725334075557,0.0018,59229.0,59228.0,0.64697057]
[1725334077657,0.0018,59229.0,59228.0,0.28617057]
[1725334079860,0.0018,59229.0,59228.0,0.64697057]
[1725334083064,0.0018,59229.0,59228.0,0.64696494]
[1725334083457,0.0018,59229.0,59228.0,0.74788231]
[1725334083650,0.0018,59229.0,59228.0,0.64696494]
[1725334084556,0.0018,59229.0,59228.0,0.74788231]
[1725334086756,0.0018,59229.0,59228.0,0.64696494]
[1725334088464,0.0018,59229.0,59228.0,0.518332]
[1725334091773,0.0018,59229.0,59228.0,0.3608]
[1725334092076,0.069332,59229.0,59228.0,0.09]
[1725334095570,0.069332,59229.0,59228.0,0.21863705]
[1725334097975,0.069332,59229.0,59228.0,0.21863828]
[1725334098173,0.069332,59229.0,59228.0,0.08442648]
[1725334098174,1.761714,59229.0,59228.0,0.08442648]
[1725334098379,0.067532,59228.0,59227.0,3.9e-07]
[1725334098675,0.067532,59228.0,59225.0,0.00105313]
[1725334098676,1.04282,59228.0,59225.0,0.00105313]
[1725334098874,0.50652,59227.0,59225.0,0.00105313]
[1725334099069,0.135068,59226.0,59225.0,0.00105313]
[1725334099381,0.690288,59226.0,59225.0,0.00105313]
[1725334099677,1.690288,59226.0,59225.0,0.00105313]
[1725334100968,1.696288,59226.0,59225.0,0.00105313]
[1725334102875,1.096288,59226.0,59225.0,0.00105313]